bitfinex-derivatives/quotes_BTCF0:USTF0_20250129
["timestamp","ask_amount","ask_price","bid_price","bid_amount"]
[1738181426923,0.204471,103390.0,103380.0,0.19463441]
[1738181426924,0.565271,103390.0,103380.0,0.19463441]
[1738181427318,0.565271,103390.0,103380.0,0.00114541]
[1738181427518,0.420169,103390.0,103360.0,0.193517]
[1738181427718,0.193527,103360.0,103350.0,0.00145127]
[1738181427917,0.193545,103350.0,103340.0,0.19432]
[1738181428114,0.554345,103350.0,103340.0,0.19356]
[1738181428312,0.3608,103370.0,103340.0,0.20783481]
[1738181428514,0.3608,103370.0,103360.0,0.193527]
[1738181428721,0.36094541,103370.0,103360.0,0.193527]
[1738181428933,0.55445341,103370.0,103360.0,0.193527]
[1738181429522,0.00014541,103370.0,103360.0,0.193527]
[1738181429716,0.00014541,103370.0,103360.0,0.554327]
[1738181430234,0.003,103390.0,103380.0,0.193489]
[1738181430428,0.47115,103400.0,103390.0,0.193471]
[1738181430429,0.654256,103400.0,103390.0,0.193471]
[1738181430621,0.57526355,103400.0,103360.0,0.65156]
[1738181430815,0.554314,103370.0,103360.0,0.193524]
[1738181431327,0.3618,103370.0,103360.0,0.193524]
[1738181431533,0.555308,103370.0,103360.0,0.193524]
[1738181432223,0.001,103370.0,103360.0,0.193524]
[1738181432425,0.001,103370.0,103360.0,0.195524]
[1738181432624,0.00014541,103380.0,103370.0,0.193508]
[1738181432930,0.21446355,103400.0,103390.0,0.193471]
[1738181433225,0.21446355,103400.0,103390.0,0.76210581]
[1738181433433,0.21446355,103400.0,103390.0,0.40130581]
[1738181433733,0.21446355,103400.0,103390.0,0.76210581]
[1738181434429,0.41580259,103400.0,103390.0,0.76210581]
[1738181434724,0.42380259,103400.0,103390.0,0.86310581]
[1738181434927,0.00145122,103430.0,103390.0,1.07628462]
[1738181435125,0.55418,103440.0,103420.0,0.20783481]
[1738181435322,0.55418,103440.0,103420.0,0.40123981]
[1738181435524,0.55418,103440.0,103430.0,0.193396]
[1738181435720,0.55418,103440.0,103420.0,0.20783481]
[1738181435721,0.3608,103440.0,103420.0,0.20783481]
[1738181435925,0.554196,103430.0,103420.0,0.00014541]
[1738181436224,0.193396,103430.0,103420.0,0.19355941]
[1738181436423,0.193381,103440.0,103430.0,0.193391]
[1738181436626,0.3608,103440.0,103430.0,0.193391]
[1738181436936,0.871473,103450.0,103430.0,0.193391]
[1738181436937,0.510668,103450.0,103430.0,0.193391]
[1738181437137,0.71960683,103460.0,103430.0,0.193391]
[1738181437138,0.009,103440.0,103430.0,0.554191]
[1738181437324,0.009,103440.0,103430.0,1.12282581]
[1738181437529,0.3608,103470.0,103450.0,0.193349]
[1738181437530,0.193325,103470.0,103450.0,0.193349]
[1738181437831,0.554125,103470.0,103460.0,0.19334]
[1738181438029,0.193325,103470.0,103460.0,0.19334]
[1738181438334,1.09910576,103480.0,103460.0,0.19334]
[1738181438335,0.20167289,103480.0,103470.0,0.193321]
[1738181438539,0.20167289,103480.0,103470.0,0.40115581]
[1738181438834,0.20022226,103480.0,103470.0,0.40115581]
[1738181439837,0.48537491,103490.0,103480.0,0.193302]
[1738181440425,0.48537491,103490.0,103480.0,0.554102]
[1738181440942,0.48537491,103490.0,103480.0,0.193302]
[1738181441331,0.49337491,103490.0,103480.0,0.194302]
[1738181441739,0.49337491,103490.0,103480.0,0.001]
[1738181441939,0.68665891,103490.0,103480.0,0.001]
[1738181442236,1.04745891,103490.0,103480.0,0.001]
[1738181442443,0.562084,103490.0,103480.0,0.001]
[1738181442837,0.201284,103490.0,103480.0,0.001]
[1738181443047,0.562084,103490.0,103480.0,0.194302]
[1738181443234,0.005,103490.0,103480.0,0.554102]
[1738181443436,0.003,103490.0,103480.0,0.193302]
[1738181443734,0.005,103490.0,103480.0,0.193302]
[1738181443950,0.005,103490.0,103480.0,0.194302]
[1738181444435,0.002,103490.0,103480.0,0.193302]
[1738181444633,0.005,103490.0,103480.0,0.193302]
[1738181445331,0.193302,103480.0,103470.0,0.40129922]
[1738181445638,0.554102,103480.0,103470.0,0.00014541]
[1738181445942,0.559086,103490.0,103470.0,0.40130122]
[1738181446335,0.559086,103490.0,103470.0,0.40129422]
[1738181446532,0.195286,103490.0,103480.0,0.193302]
[1738181447045,0.193286,103490.0,103480.0,0.193302]
[1738181447246,0.003,103490.0,103480.0,0.193302]
[1738181447440,0.557084,103490.0,103480.0,0.193302]
[1738181447838,0.559084,103490.0,103470.0,0.56878022]
[1738181448142,0.3608,103480.0,103470.0,0.40129722]
[1738181448341,0.198288,103490.0,103470.0,0.40129722]
[1738181448542,0.198288,103490.0,103480.0,0.193302]
[1738181448751,0.559088,103490.0,103480.0,0.193302]
[1738181448940,0.3658,103490.0,103480.0,0.193302]
[1738181449243,0.005,103490.0,103480.0,0.193302]
[1738181449645,0.002,103490.0,103480.0,0.193302]
[1738181449835,0.005,103490.0,103480.0,0.554102]
[1738181450243,0.005,103490.0,103480.0,1.175702]
[1738181451435,0.005,103490.0,103480.0,1.215702]
[1738181451635,0.005,103490.0,103480.0,1.22587082]
[1738181451939,0.005,103490.0,103480.0,1.18587082]
[1738181452239,0.3608,103520.0,103480.0,1.04256882]
[1738181452441,0.3608,103520.0,103510.0,0.40108081]
[1738181452939,0.19321,103530.0,103520.0,0.193228]
[1738181453136,0.4756465,103550.0,103510.0,0.56863481]
[1738181453347,0.4756465,103550.0,103530.0,0.40103181]
[1738181453348,0.6688275,103550.0,103530.0,0.40103181]
[1738181453537,0.4756465,103550.0,103530.0,0.40103181]
[1738181453739,0.19319,103540.0,103530.0,0.193197]
[1738181454042,0.6688225,103550.0,103530.0,0.40102881]
[1738181454338,0.55399,103540.0,103530.0,0.40117422]
[1738181454539,0.55399,103540.0,103530.0,0.00014541]
[1738181455745,0.55399,103540.0,103530.0,0.00114541]
[1738181456338,0.55899,103540.0,103530.0,0.00114541]
[1738181456843,0.193265,103500.0,103490.0,0.193281]
[1738181457246,0.554065,103500.0,103490.0,0.193281]
[1738181458042,0.3608,103500.0,103480.0,0.01007532]
[1738181458239,0.554082,103500.0,103490.0,0.193284]
[1738181458445,0.193284,103490.0,103480.0,0.19344241]
[1738181458750,0.554084,103490.0,103480.0,0.19344241]
[1738181459050,0.3608,103490.0,103460.0,0.00076]
[1738181459347,0.6779,103490.0,103470.0,0.193321]
[1738181459645,0.919505,103490.0,103480.0,0.003]
[1738181459849,1.231984,103490.0,103480.0,0.012]
[1738181460050,1.231984,103490.0,103480.0,0.205302]
[1738181460346,0.914884,103490.0,103470.0,0.20783481]
[1738181460540,0.193302,103480.0,103470.0,0.19345741]
[1738181460740,0.554102,103480.0,103470.0,0.19345741]
[1738181461134,0.554102,103480.0,103470.0,0.00014541]
[1738181462241,0.193354,103460.0,103440.0,0.193371]
[1738181462544,0.3608,103450.0,103430.0,1.21549481]
[1738181462741,0.554124,103470.0,103460.0,0.19334]
[1738181462940,0.194306,103480.0,103460.0,0.19334]
[1738181463142,0.001,103480.0,103470.0,0.40115581]
[1738181463443,0.3608,103490.0,103470.0,0.20783481]
[1738181463650,0.00014541,103480.0,103470.0,0.40115581]
[1738181464044,0.00114541,103480.0,103470.0,0.76195581]
[1738181464350,0.3608,103530.0,103470.0,1.39670657]
[1738181464653,0.19324,103520.0,103500.0,0.193261]
[1738181464952,0.554046,103510.0,103490.0,0.40111481]
[1738181465249,0.193246,103510.0,103490.0,0.40111481]
[1738181465448,0.554046,103510.0,103490.0,0.56863481]
[1738181465638,0.193231,103520.0,103500.0,0.193253]
[1738181465842,0.00014541,103510.0,103500.0,0.193253]
[1738181466154,0.19339141,103510.0,103500.0,0.193253]
[1738181466339,0.55419141,103510.0,103500.0,0.193253]
[1738181466539,0.19339141,103510.0,103500.0,0.193253]
[1738181466743,0.00014541,103510.0,103500.0,0.193253]
[1738181467254,0.55419141,103510.0,103490.0,0.20798022]
[1738181467455,0.554065,103500.0,103490.0,0.00014541]
[1738181467654,0.193265,103500.0,103490.0,0.00014541]
[1738181467854,0.554065,103500.0,103490.0,0.00014541]
[1738181468962,0.554065,103500.0,103450.0,0.193356]
[1738181468963,0.86863481,103500.0,103450.0,0.193356]
[1738181469253,0.19334,103460.0,103450.0,0.193356]
[1738181469554,0.55460801,103490.0,103480.0,0.193302]
[1738181469754,0.554088,103490.0,103480.0,0.193302]
[1738181470453,0.3608,103490.0,103480.0,0.193286]
[1738181470953,0.7236,103490.0,103470.0,0.19346341]
[1738181471157,0.193302,103480.0,103470.0,0.19346341]
[1738181471360,0.554102,103480.0,103470.0,0.19346341]
[1738181471752,0.3608,103480.0,103470.0,0.19346341]
[1738181471952,0.002,103490.0,103480.0,0.193302]
[1738181472152,0.002,103490.0,103480.0,0.554102]
[1738181472353,0.00014541,103500.0,103480.0,0.3608]
[1738181472551,0.00014541,103500.0,103470.0,0.56878022]
[1738181472552,0.00014541,103500.0,103490.0,0.40111881]
[1738181473062,0.36094541,103500.0,103470.0,0.56878022]
[1738181473248,0.556084,103490.0,103480.0,0.1933]
[1738181473449,0.3628,103490.0,103470.0,0.36094541]
[1738181473656,0.193302,103480.0,103470.0,0.55426341]
[1738181473862,0.554102,103480.0,103470.0,0.00014541]
[1738181474354,0.193358,103450.0,103440.0,0.65743567]
[1738181474546,0.193348,103460.0,103450.0,0.193358]
[1738181474857,0.3608,103470.0,103460.0,0.19333]
[1738181474858,0.193324,103470.0,103460.0,0.19333]
[1738181475253,0.554107,103480.0,103450.0,0.78473448]
[1738181475454,0.3608,103490.0,103460.0,0.3608]
[1738181475657,0.557095,103490.0,103480.0,0.193302]
[1738181475958,0.193302,103480.0,103470.0,0.193315]
[1738181476147,0.194302,103480.0,103470.0,0.19346041]
[1738181476353,0.001,103480.0,103470.0,0.76209522]
[1738181476760,0.36394541,103490.0,103470.0,0.40129522]
[1738181477063,0.554102,103480.0,103470.0,0.19346041]
[1738181477260,0.3608,103480.0,103470.0,0.19346041]
[1738181477467,0.003,103480.0,103470.0,0.40129522]
[1738181477756,0.196302,103480.0,103470.0,0.40129522]
[1738181477964,0.557102,103480.0,103470.0,0.00014541]
[1738181478159,0.557102,103480.0,103450.0,0.16776067]
[1738181478160,0.19334,103460.0,103450.0,0.16776067]
[1738181478458,0.91494,103460.0,103450.0,0.16776067]
[1738181478761,0.193326,103470.0,103460.0,0.19334]
[1738181479264,0.193326,103470.0,103440.0,0.409903]
[1738181479265,0.3608,103470.0,103440.0,0.409141]
[1738181479456,0.55415,103460.0,103450.0,0.00014541]
[1738181479652,0.91495,103460.0,103450.0,0.00014541]
[1738181480259,0.91495,103460.0,103450.0,0.00914541]
[1738181480565,0.91495,103460.0,103450.0,0.01414541]
[1738181481474,0.91495,103460.0,103450.0,0.20250341]
[1738181481475,0.91695,103460.0,103450.0,0.20250341]
[1738181481653,0.002,103460.0,103450.0,0.41033822]
[1738181482055,0.002,103460.0,103450.0,0.77113822]
[1738181482258,0.005,103460.0,103450.0,1.08513822]
[1738181482454,0.19834,103460.0,103450.0,0.72433822]
[1738181482659,0.19834,103460.0,103450.0,0.51650341]
[1738181482864,0.19634,103460.0,103450.0,0.19450341]
[1738181483063,0.56114,103460.0,103450.0,0.19450341]
[1738181483363,0.56114,103460.0,103450.0,0.00114541]
[1738181483563,0.20034,103460.0,103450.0,0.19450341]
[1738181483766,0.006,103460.0,103450.0,0.19450341]
[1738181484059,0.006,103460.0,103450.0,0.76313822]
[1738181484267,0.006,103460.0,103450.0,1.07683822]
[1738181484470,0.006,103460.0,103450.0,0.71603822]
[1738181484967,0.56014,103460.0,103450.0,0.19450341]
[1738181485463,0.006,103460.0,103450.0,0.40233822]
[1738181485657,0.006,103460.0,103450.0,0.76313822]
[1738181486259,0.08640469,103470.0,103450.0,0.56978022]
[1738181486571,0.08640469,103470.0,103460.0,1.18914]
[1738181486765,0.25963665,103480.0,103470.0,0.193321]
[1738181487065,0.25963665,103480.0,103470.0,0.76195581]
[1738181487370,0.2019453,103480.0,103470.0,0.193321]
[1738181487567,0.7560473,103480.0,103470.0,0.193321]
[1738181487868,0.7560473,103480.0,103460.0,0.99656]
[1738181487869,0.193321,103470.0,103460.0,1.189891]
[1738181488068,0.193321,103470.0,103460.0,0.3174]
[1738181488373,0.19334,103460.0,103450.0,0.00114541]
[1738181488571,0.55414,103460.0,103450.0,0.00114541]
[1738181488867,0.55414,103460.0,103450.0,0.19350341]
[1738181489064,0.19334,103460.0,103450.0,0.19350341]
[1738181489263,0.3608,103470.0,103460.0,0.193326]
[1738181489264,0.193325,103470.0,103460.0,0.193326]
[1738181489970,0.75657631,103480.0,103470.0,0.193321]
[1738181490171,0.2019453,103480.0,103470.0,0.193321]
[1738181490675,0.2019453,103480.0,103470.0,0.554121]
[1738181490862,0.2019453,103480.0,103470.0,0.193321]
[1738181491069,0.7560473,103480.0,103470.0,0.193321]
[1738181492174,0.81373865,103480.0,103470.0,0.193321]
[1738181492777,0.62243665,103480.0,103460.0,0.3215]
[1738181492975,0.554121,103470.0,103460.0,0.51483]
[1738181493168,0.19334,103460.0,103450.0,0.19349741]
[1738181493365,0.55414,103460.0,103450.0,0.19349741]
[1738181493768,0.19334,103460.0,103450.0,0.19349741]
[1738181493969,0.55414,103460.0,103450.0,0.19349741]
[1738181494171,0.19334,103460.0,103450.0,0.19349741]
[1738181495277,0.55414,103460.0,103450.0,0.19349741]
[1738181495783,0.19334,103460.0,103450.0,0.19349741]
[1738181495969,0.19334,103460.0,103450.0,0.20749741]
[1738181495970,0.55414,103460.0,103450.0,0.20749741]
[1738181497883,0.55414,103460.0,103450.0,0.01414541]
[1738181498883,0.3608,103470.0,103450.0,0.01414541]
[1738181499085,0.193325,103470.0,103460.0,0.19334]
[1738181499282,0.56395175,103480.0,103470.0,0.193321]
[1738181499473,0.67928119,103480.0,103470.0,0.193321]
[1738181499978,0.66958185,103480.0,103470.0,0.193321]
[1738181500375,0.193335,103470.0,103460.0,0.193337]
[1738181500675,0.66958485,103480.0,103450.0,0.93131922]
[1738181500875,0.11547485,103480.0,103470.0,0.193321]
[1738181501080,0.31715597,103490.0,103470.0,0.67863481]
[1738181501281,0.31715597,103490.0,103480.0,0.554102]
[1738181501585,0.19957972,103510.0,103500.0,0.193265]
[1738181502184,0.75362572,103510.0,103500.0,0.193265]
[1738181502783,0.56037972,103510.0,103490.0,0.00014541]
[1738181503088,0.554065,103500.0,103490.0,0.00014541]
[1738181503284,0.3608,103500.0,103470.0,0.193319]
[1738181503479,0.554102,103480.0,103470.0,0.193319]
[1738181503783,0.193331,103470.0,103460.0,0.193337]
[1738181503990,0.193344,103460.0,103450.0,0.193353]
[1738181504176,0.193324,103470.0,103460.0,0.19333]
[1738181504485,0.193324,103470.0,103460.0,0.68787203]
[1738181504787,0.00014541,103480.0,103470.0,0.193321]
[1738181505177,0.00014541,103480.0,103470.0,0.554121]
[1738181505373,0.00014541,103480.0,103470.0,0.40115581]
[1738181505787,0.00014541,103480.0,103470.0,0.193321]
[1738181505980,0.19344741,103480.0,103470.0,0.193321]
[1738181506182,0.00014541,103480.0,103470.0,0.193321]
[1738181506783,0.00114541,103480.0,103470.0,0.193321]
[1738181506988,0.00114541,103480.0,103470.0,0.76195581]
[1738181507187,0.00114541,103480.0,103470.0,1.05885581]
[1738181508382,1e-08,103480.0,103470.0,1.38335581]
[1738181509186,1e-08,103480.0,103470.0,1.175521]
[1738181509390,1e-08,103480.0,103470.0,1.38335581]
[1738181511291,1e-08,103480.0,103470.0,0.193321]
[1738181511292,0.55410201,103480.0,103470.0,0.193321]
[1738181511482,0.193321,103470.0,103460.0,0.20320104]
[1738181511784,0.554121,103470.0,103460.0,0.20320104]
[1738181511988,0.554121,103470.0,103460.0,0.16693619]
[1738181512778,0.554121,103470.0,103460.0,0.16793619]
[1738181512990,0.554121,103470.0,103450.0,0.49468744]
[1738181512991,0.19334,103460.0,103450.0,0.49468744]
[1738181513287,0.19334,103460.0,103440.0,0.33139749]
[1738181513288,0.40119281,103450.0,103440.0,0.33139749]
[1738181513486,1.08819281,103450.0,103440.0,0.33139749]
[1738181513882,0.89483481,103450.0,103430.0,0.38635898]
[1738181514080,0.193377,103440.0,103430.0,0.57975398]
[1738181514382,0.51970941,103450.0,103440.0,0.193377]
[1738181514577,0.00014541,103450.0,103440.0,0.554177]
[1738181515581,0.00014541,103450.0,103440.0,0.193377]
[1738181515784,0.00014541,103450.0,103440.0,0.554177]
[1738181516989,1.32219931,103480.0,103440.0,0.3608]
[1738181516990,0.37079931,103480.0,103440.0,0.3608]
[1738181517285,0.20330931,103480.0,103470.0,0.193321]
[1738181517489,0.193323,103470.0,103460.0,0.193333]
[1738181517693,0.193343,103460.0,103450.0,0.193346]
[1738181517890,0.3608,103470.0,103430.0,0.61697981]
[1738181518192,0.554138,103470.0,103460.0,0.19334]
[1738181518492,0.193338,103470.0,103460.0,0.19334]
[1738181519191,0.37094472,103480.0,103460.0,0.19334]
[1738181519378,0.56425372,103480.0,103470.0,0.193321]
[1738181519783,0.193326,103470.0,103460.0,0.19347741]
[1738181519982,0.554126,103470.0,103460.0,0.00014541]
[1738181520180,0.76196081,103470.0,103460.0,0.00014541]
[1738181520386,0.76196081,103470.0,103420.0,1.395703]
[1738181520387,0.193396,103430.0,103420.0,0.515712]
[1738181520685,0.193372,103450.0,103440.0,0.193375]
[1738181520886,0.554172,103450.0,103440.0,0.193375]
[1738181521082,0.19339,103440.0,103430.0,0.193393]
[1738181521282,0.193412,103430.0,103420.0,0.193412]
[1738181521485,0.554212,103430.0,103420.0,0.19355741]
[1738181521695,0.554212,103430.0,103420.0,0.00014541]
[1738181521879,0.554212,103430.0,103420.0,0.19356041]
[1738181522284,0.76204681,103430.0,103420.0,0.00014541]
[1738181522484,0.193433,103410.0,103400.0,0.08105389]
[1738181522698,0.97779381,103410.0,103370.0,0.193503]
[1738181522898,0.3608,103380.0,103370.0,0.193503]
[1738181523291,0.3608,103380.0,103360.0,1.31551898]
[1738181523292,0.554289,103380.0,103360.0,0.38711898]
[1738181523489,0.3608,103370.0,103360.0,0.57987898]
[1738181523698,0.554308,103370.0,103360.0,0.57997594]
[1738181524304,0.554308,103370.0,103360.0,0.38645594]
[1738181524489,0.76214281,103370.0,103360.0,0.38645594]
[1738181524685,1.38904281,103370.0,103360.0,0.38645594]
[1738181524986,1.39004281,103370.0,103360.0,0.39545594]
[1738181525196,1.182208,103370.0,103360.0,0.58898294]
[1738181525390,0.001,103370.0,103360.0,0.20262396]
[1738181525594,0.001,103370.0,103360.0,0.20362396]
[1738181525897,0.3618,103370.0,103360.0,0.20362396]
[1738181526095,0.00014541,103380.0,103370.0,0.193508]
[1738181526299,0.554236,103410.0,103370.0,0.56863481]
[1738181526598,0.554278,103390.0,103370.0,0.193503]
[1738181526793,0.3608,103390.0,103380.0,0.193489]
[1738181526999,0.3608,103400.0,103390.0,0.193471]
[1738181527294,0.193471,103390.0,103380.0,0.193484]
[1738181527794,0.002,103390.0,103380.0,0.193484]
[1738181528098,0.193489,103380.0,103370.0,0.19365241]
[1738181528293,0.556289,103380.0,103370.0,0.00014541]
[1738181528695,0.193545,103350.0,103330.0,0.517181]
[1738181528995,0.193564,103340.0,103320.0,0.872299]
[1738181529192,0.3608,103350.0,103330.0,0.193583]
[1738181529384,0.3608,103360.0,103330.0,0.56863481]
[1738181529589,0.3608,103370.0,103330.0,0.56863481]
[1738181529797,0.193532,103360.0,103350.0,0.193545]
[1738181529996,0.00014541,103360.0,103350.0,0.193545]
[1738181530389,0.00014541,103360.0,103350.0,0.76217981]
[1738181530585,0.003,103380.0,103370.0,0.193508]
[1738181530797,0.003,103380.0,103370.0,0.76214281]
[1738181531191,0.002,103380.0,103370.0,0.76214281]
[1738181531395,0.002,103380.0,103370.0,0.554308]
[1738181531594,0.002,103380.0,103370.0,1.12294281]
[1738181531794,0.193437,103410.0,103370.0,0.97780981]
[1738181531990,0.20397067,103420.0,103400.0,0.19344]
[1738181532195,0.193433,103410.0,103400.0,0.19344]
[1738181532900,0.56435907,103420.0,103400.0,0.19344]
[1738181533098,0.20655907,103420.0,103400.0,0.3608]
[1738181533300,0.20655907,103420.0,103410.0,0.193433]
[1738181533301,0.00314541,103420.0,103410.0,0.193433]
[1738181533506,0.19655941,103420.0,103410.0,0.193433]
[1738181533699,0.00014541,103420.0,103410.0,0.193433]
[1738181534011,0.55435941,103420.0,103400.0,0.3197]
[1738181534207,0.193433,103410.0,103400.0,0.193447]
[1738181534702,0.55637041,103420.0,103400.0,0.193447]
[1738181534896,0.193433,103410.0,103400.0,0.193447]
[1738181535199,0.55636341,103420.0,103390.0,0.36094541]
[1738181535403,0.55636341,103420.0,103410.0,0.193433]
[1738181535601,0.19556341,103420.0,103410.0,0.193433]
[1738181535810,0.00214541,103420.0,103410.0,0.193433]
[1738181536001,0.193433,103410.0,103400.0,0.193449]
[1738181536200,0.554251,103410.0,103390.0,0.19441141]
[1738181536502,0.554251,103410.0,103390.0,0.55441141]
[1738181536799,0.554252,103400.0,103390.0,0.00014541]
[1738181537002,0.193507,103380.0,103360.0,0.193522]
[1738181537299,0.193507,103380.0,103360.0,0.3608]
[1738181537300,0.193505,103380.0,103360.0,0.3608]
[1738181537507,0.193505,103380.0,103370.0,0.193508]
[1738181537906,0.193474,103390.0,103380.0,0.193484]
[1738181538097,0.193474,103390.0,103370.0,0.3608]
[1738181538098,0.3608,103390.0,103370.0,0.3608]
[1738181538297,0.193489,103380.0,103370.0,0.554305]
[1738181538501,0.001,103380.0,103370.0,0.554308]
[1738181538691,0.001,103380.0,103370.0,0.76214281]
[1738181539097,0.001,103380.0,103370.0,0.554308]
[1738181539705,0.002,103380.0,103370.0,0.554308]
[1738181539908,0.001,103380.0,103370.0,0.554308]
[1738181540404,0.194489,103380.0,103370.0,0.554308]
[1738181540795,0.001,103380.0,103370.0,0.558308]
[1738181541405,0.00014541,103390.0,103380.0,0.193489]
[1738181541702,0.193437,103410.0,103400.0,0.193452]
[1738181542009,0.193437,103410.0,103390.0,0.193468]
[1738181542010,0.193452,103400.0,103390.0,0.193468]
[1738181542310,0.193452,103400.0,103390.0,0.554268]
[1738181542510,1.33382653,103430.0,103390.0,0.56863481]
[1738181542705,0.193421,103420.0,103410.0,0.193431]
[1738181543101,0.19356641,103420.0,103410.0,0.193431]
[1738181543904,0.00314541,103420.0,103400.0,0.36094541]
[1738181544209,0.19656241,103420.0,103410.0,0.193433]
[1738181544799,0.36394541,103420.0,103400.0,0.00014541]
[1738181545111,0.554233,103410.0,103400.0,0.00014541]
[1738181545408,0.554233,103410.0,103370.0,1.299076]
[1738181545409,0.193489,103380.0,103370.0,1.083405]
[1738181545609,0.3608,103390.0,103370.0,0.8899]
[1738181545809,0.554281,103390.0,103380.0,0.193489]
[1738181546206,0.193481,103390.0,103380.0,0.193489]
[1738181546612,0.19360541,103400.0,103390.0,0.193466]
[1738181546910,0.00014541,103400.0,103390.0,0.193466]
[1738181547115,0.00014541,103400.0,103390.0,0.554266]
[1738181548000,0.00114541,103400.0,103390.0,0.554266]
[1738181548418,0.00114541,103400.0,103390.0,0.76210081]
[1738181548903,0.00214541,103400.0,103390.0,0.76210081]
[1738181549311,0.193418,103420.0,103410.0,0.193433]
[1738181549703,0.3608,103430.0,103400.0,0.3608]
[1738181549912,0.193431,103420.0,103400.0,0.193439]
[1738181550120,0.193431,103420.0,103410.0,0.193433]
[1738181550417,0.193456,103400.0,103390.0,0.193464]
[1738181550811,0.193456,103400.0,103390.0,0.554264]
[1738181551007,0.003,103420.0,103410.0,0.193433]
[1738181551215,0.003,103420.0,103410.0,0.76206781]
[1738181551415,0.003,103420.0,103410.0,0.80206781]
[1738181551607,0.17306969,103440.0,103430.0,0.193396]
[1738181551915,0.63202383,103470.0,103460.0,0.19334]
[1738181552211,0.62194156,103470.0,103460.0,0.19334]
[1738181552917,0.42861256,103470.0,103460.0,0.55414]
[1738181553418,0.2853817,103490.0,103480.0,0.193302]
[1738181553723,0.20181302,103490.0,103480.0,1.12273681]
[1738181554619,0.09540348,103510.0,103500.0,0.193265]
[1738181554918,0.94347286,103550.0,103500.0,0.193265]
[1738181554919,1.15130767,103550.0,103500.0,0.92943481]
[1738181555115,0.193234,103520.0,103510.0,0.3608]
[1738181555424,0.14447675,103510.0,103490.0,0.193278]
[1738181555615,0.3608,103520.0,103480.0,0.554091]
[1738181555920,0.554046,103510.0,103500.0,0.00014541]
[1738181556217,0.55419141,103510.0,103500.0,0.00014541]
[1738181556623,0.55419141,103510.0,103500.0,0.19341041]
[1738181556922,0.19339141,103510.0,103500.0,0.55421041]
[1738181557919,0.00056001,103550.0,103540.0,0.19319]
[1738181558223,1.0979,103590.0,103560.0,0.193142]
[1738181558517,1.0979,103590.0,103560.0,0.553942]
[1738181558715,0.193126,103580.0,103560.0,0.193142]
[1738181558908,0.9048,103590.0,103540.0,0.56863481]
[1738181558909,0.953075,103590.0,103540.0,0.56863481]
[1738181559110,0.193146,103570.0,103560.0,0.00014541]
[1738181559315,0.553934,103570.0,103560.0,0.00014541]
[1738181560119,0.193172,103550.0,103540.0,0.001]
[1738181560422,0.553972,103550.0,103540.0,0.001]
[1738181560822,0.553972,103550.0,103530.0,0.554]
[1738181561019,0.553972,103550.0,103530.0,0.3608]
[1738181561223,0.553972,103550.0,103540.0,0.19319]
[1738181561529,0.36094541,103550.0,103540.0,0.40202481]
[1738181561913,0.55411741,103550.0,103540.0,0.40202481]
[1738181562222,0.83151741,103550.0,103530.0,0.55415141]
[1738181562421,0.83151741,103550.0,103530.0,0.19335141]
[1738181562618,0.19319,103540.0,103530.0,0.19335141]
[1738181563325,0.55399,103540.0,103530.0,0.00014541]
[1738181563525,0.19319,103540.0,103530.0,0.19335441]
[1738181565026,0.55399,103540.0,103530.0,0.00014541]
[1738181565327,0.3608,103540.0,103510.0,0.3608]
[1738181565627,0.553995,103540.0,103530.0,0.001]
[1738181565835,0.553995,103540.0,103530.0,0.002]
[1738181566034,0.553995,103540.0,103530.0,0.001]
[1738181566528,0.553995,103540.0,103530.0,0.194209]
[1738181566825,0.193209,103530.0,103520.0,0.76200222]
[1738181567724,0.3608,103540.0,103520.0,0.56878022]
[1738181567929,0.64887391,103550.0,103520.0,0.56878022]
[1738181567930,0.47072841,103550.0,103530.0,0.553995]
[1738181568125,0.27754541,103550.0,103530.0,0.3608]
[1738181568322,0.193203,103540.0,103530.0,0.193206]
[1738181568631,0.554003,103540.0,103530.0,0.193206]
[1738181568835,0.193209,103530.0,103520.0,0.40120322]
[1738181569129,0.193209,103530.0,103520.0,0.40220322]
[1738181569630,0.27754541,103550.0,103540.0,0.19319]
[1738181569824,0.27754541,103550.0,103520.0,0.56978022]
[1738181570024,0.193197,103540.0,103530.0,0.193202]
[1738181570231,0.193197,103540.0,103530.0,0.554002]
[1738181570433,0.193197,103540.0,103530.0,0.193202]
[1738181570635,0.193209,103530.0,103520.0,0.40220522]
[1738181571034,0.193197,103540.0,103530.0,0.193201]
[1738181571831,0.47071941,103550.0,103540.0,0.19319]
[1738181572034,0.47071741,103550.0,103540.0,0.40102481]
[1738181572235,0.47071741,103550.0,103540.0,0.19319]
[1738181575340,0.00014541,103550.0,103540.0,0.76182481]
[1738181576637,0.00014541,103550.0,103540.0,0.68829298]
[1738181576827,0.19331741,103550.0,103540.0,0.68829298]
[1738181577833,0.55411741,103550.0,103540.0,0.32749298]
[1738181578027,0.36094541,103550.0,103530.0,0.1443062]
[1738181578229,0.55399,103540.0,103530.0,0.32750498]
[1738181578538,0.19319,103540.0,103530.0,0.32750498]
[1738181578933,0.62874541,103550.0,103530.0,0.32750498]
[1738181579129,0.62874541,103550.0,103520.0,0.49524839]
[1738181579441,0.3608,103540.0,103530.0,0.194207]
[1738181579642,0.55399,103540.0,103530.0,0.001]
[1738181580143,0.55399,103540.0,103530.0,0.193209]
[1738181580345,0.3608,103540.0,103530.0,0.193209]
[1738181580535,0.26846542,103550.0,103540.0,0.19319]
[1738181580728,0.26794541,103550.0,103540.0,0.32749298]
[1738181580929,0.62874541,103550.0,103530.0,0.13430298]
[1738181581235,0.26794541,103550.0,103540.0,0.32749298]
[1738181582034,0.00014541,103550.0,103540.0,0.68829298]
[1738181582235,0.77207801,103580.0,103540.0,0.66940596]
[1738181582236,0.3806761,103580.0,103540.0,0.66940596]
[1738181582442,0.3806761,103580.0,103570.0,0.68823698]
[1738181582940,0.1137761,103580.0,103570.0,0.68823698]
[1738181583635,0.1137761,103580.0,103570.0,0.32743698]
[1738181584039,0.1137761,103580.0,103570.0,0.553934]
[1738181584236,0.1137761,103580.0,103570.0,0.56376089]